bitfinex/quotes_ETHUSD_20241203
["timestamp","ask_amount","ask_price","bid_price","bid_amount"]
[1733230387689,2.3968449,3606.8,3606.3,2.7729]
[1733230387880,0.95873074,3606.7,3606.3,2.7729]
[1733230388080,1.16222961,3606.8,3606.0,2.77309]
[1733230388298,10.3072,3606.9,3606.0,2.77309]
[1733230388299,3.59393968,3606.7,3606.0,2.77309]
[1733230388600,1.16222961,3606.8,3606.2,2.77299]
[1733230388757,2.39705897,3606.7,3606.2,2.77299]
[1733230389107,0.95879225,3606.6,3606.2,2.77299]
[1733230389281,1.16222961,3606.8,3606.2,2.77299]
[1733230389466,2.39729431,3606.7,3606.2,2.77299]
[1733230389678,0.95891772,3606.6,3606.2,2.77299]
[1733230389889,1.16222961,3606.8,3606.2,2.77299]
[1733230390198,3.55966023,3606.7,3606.0,0.436739]
[1733230390355,0.95897225,3606.6,3606.1,0.4804229]
[1733230390690,1.16222961,3606.7,3606.1,0.4804229]
[1733230390691,1.16222961,3606.7,3606.4,2.77277]
[1733230390878,0.95904752,3606.6,3606.2,2.77297]
[1733230391082,9.93222961,3606.8,3606.2,2.77297]
[1733230391286,2.39776855,3606.7,3606.2,2.77297]
[1733230391457,0.9591458,3606.6,3606.2,2.77297]
[1733230391658,1.16222961,3606.7,3606.2,2.77297]
[1733230391858,0.95913142,3606.6,3606.2,2.77297]
[1733230392079,1.16222961,3606.7,3606.2,2.77297]
[1733230392295,0.95916769,3606.6,3606.2,2.77297]
[1733230392468,1.16222961,3606.7,3606.2,2.77297]
[1733230392669,0.95927158,3606.6,3606.2,2.77297]
[1733230392877,1.16222961,3606.7,3606.2,2.77297]
[1733230393060,2.39815337,3606.6,3606.2,2.77297]
[1733230393268,1.16222961,3606.7,3606.5,2.77277]
[1733230393490,0.95939229,3606.6,3606.3,2.77292]
[1733230393690,9.93222961,3606.8,3606.4,2.77278]
[1733230394000,3.56061269,3606.7,3606.4,2.77278]
[1733230394203,3.56061269,3606.6,3606.0,5.77315]
[1733230394503,3.56061269,3606.6,3605.9,4.36752]
[1733230394504,0.95935323,3606.5,3606.2,2.77299]
[1733230394665,1.16222961,3606.7,3606.2,2.77299]
[1733230394865,2.39865819,3606.6,3606.2,2.77299]
[1733230395104,1.16222961,3606.7,3606.2,2.77299]
[1733230395307,2.39880013,3606.6,3606.2,2.77299]
[1733230395603,0.95952238,3606.5,3606.2,2.77299]
[1733230395762,1.16222961,3606.7,3606.2,2.77299]
[1733230395963,0.95949939,3606.6,3606.0,2.77312]
[1733230396164,1.5069,3606.4,3606.0,1.06924663]
[1733230396399,1.54156049,3606.4,3605.8,2.77329]
[1733230396612,1.5069,3606.4,3605.8,2.77329]
[1733230396775,0.03466267,3606.3,3605.8,2.77329]
[1733230397115,0.03466267,3606.3,3605.3,1.6058]
[1733230397116,11.16928057,3606.2,3605.3,1.6058]
[1733230397276,0.95971223,3606.1,3605.9,2.77319]
[1733230397476,8.77,3606.2,3606.1,2.77307]
[1733230397726,9.72989375,3606.2,3606.1,2.77307]
[1733230398017,8.77,3606.2,3606.1,2.77307]
[1733230398179,8.77,3606.2,3605.8,1.6058]
[1733230398376,8.77,3606.2,3605.9,2.7732]
[1733230399408,0.96002781,3606.1,3605.9,2.7732]
[1733230399597,8.77,3606.2,3605.9,2.7732]
[1733230399803,0.96008114,3606.1,3605.9,2.7732]
[1733230400030,9.93222961,3606.2,3605.9,2.7732]
[1733230400257,2.40025398,3606.1,3605.9,2.7732]
[1733230400524,0.96015651,3606.0,3605.9,2.7732]
[1733230401425,0.96015651,3606.0,3605.9,3.066578]
[1733230401729,9.93222961,3606.2,3606.1,2.77307]
[1733230401932,12.33284118,3606.2,3606.1,2.77307]
[1733230402132,11.17061157,3606.2,3606.1,4.31657]
[1733230402291,9.73024463,3606.2,3606.1,5.0709428]
[1733230403024,0.96024463,3606.2,3606.1,3.5274428]
[1733230403226,2.40102544,3606.2,3605.9,3.066608]
[1733230403430,0.96057676,3606.1,3606.0,2.77314]
[1733230403796,2.40148132,3606.1,3606.0,2.77314]
[1733230404030,3.56371093,3606.1,3606.0,2.77314]
[1733230404343,2.40148132,3606.1,3605.8,2.77328]
[1733230404546,3.56326009,3606.0,3605.8,2.77328]
[1733230404714,2.4015665,3605.9,3605.8,2.77328]
[1733230404917,0.96057676,3605.9,3605.8,2.77328]
[1733230405300,2.40166849,3605.9,3605.8,2.77328]
[1733230405543,3.56344726,3605.9,3605.4,1.6015]
[1733230405837,0.96057676,3605.8,3605.5,0.79308541]
[1733230406046,1.16177877,3605.9,3605.5,0.79308541]
[1733230406230,2.40207127,3605.8,3605.5,0.79308541]
[1733230406440,1.16177877,3605.9,3605.7,2.77338]
[1733230406748,0.96090183,3605.8,3605.7,2.77338]
[1733230406949,0.96090183,3605.8,3605.7,3.86753454]
[1733230407147,2.40222793,3605.8,3605.7,3.86753454]
[1733230407632,2.40222793,3605.8,3605.4,2.7736]
[1733230407950,2.40222793,3605.8,3605.1,1.6034]
[1733230407951,0.96090183,3605.7,3605.2,2.77374]
[1733230408104,2.48900183,3605.6,3605.2,2.77374]
[1733230408304,0.96129601,3605.5,3605.2,2.77374]
[1733230408540,2.68987877,3605.6,3605.2,3.44322759]
[1733230408724,0.9609442,3605.5,3605.2,0.66948759]
[1733230408927,2.68987877,3605.6,3605.2,2.77376]
[1733230409250,2.402406,3605.5,3605.2,2.77376]
[1733230409406,0.96096103,3605.4,3605.0,0.54276005]
[1733230409608,1.16177877,3605.5,3605.0,0.54276005]
[1733230409928,0.96091153,3605.4,3605.1,2.77383]
[1733230410130,1.16177877,3605.5,3605.1,0.737623]
[1733230410352,3.56393048,3605.4,3605.2,2.77377]
[1733230410505,0.96087616,3605.3,3605.2,2.77377]
[1733230410706,1.16177877,3605.5,3605.2,2.77377]
[1733230410906,2.40150865,3605.4,3605.3,2.77369]
[1733230411106,3.56328742,3605.4,3605.3,2.77369]
[1733230411343,3.56328742,3605.4,3604.9,5.16959119]
[1733230411344,0.96060346,3605.4,3604.9,5.16959119]
[1733230411573,1.16177877,3605.5,3605.2,2.7737]
[1733230411757,1.16177877,3605.5,3605.0,1.09436212]
[1733230411758,0.96040979,3605.4,3605.0,1.09436212]
[1733230412071,1.16177877,3605.5,3605.0,1.09436212]
[1733230412232,1.16177877,3605.6,3604.9,2.16959119]
[1733230412572,0.9602872,3605.5,3605.3,2.77366]
[1733230412750,1.16177877,3605.6,3605.3,2.77366]
[1733230413069,0.96027325,3605.5,3605.3,2.77366]
[1733230413368,1.16177877,3605.6,3605.3,2.77366]
[1733230413568,3.24178871,3605.8,3605.3,2.77366]
[1733230413569,0.96020113,3605.5,3605.3,2.77366]
[1733230413869,1.16177877,3605.6,3604.9,4.94358119]
[1733230414068,0.96019426,3605.5,3605.3,2.77368]
[1733230414231,1.16177877,3605.6,3605.3,2.77368]
[1733230414436,0.96022542,3605.5,3605.3,2.77368]
[1733230414662,1.16177877,3605.7,3605.0,0.49435812]
[1733230414829,2.4004572,3605.6,3605.0,0.49435812]
[1733230415031,0.96018288,3605.5,3605.4,2.77361]
[1733230415437,1.16177877,3605.7,3605.6,2.77346]
[1733230415633,3.5621172,3605.7,3605.6,2.77346]
[1733230416067,2.40033843,3605.7,3605.6,2.77346]
[1733230416376,2.40033843,3605.7,3604.9,2.16959119]
[1733230416377,3.5621172,3605.7,3605.4,2.7736]
[1733230416671,0.96013537,3605.6,3605.5,2.77354]
[1733230417647,2.40036469,3605.6,3605.5,2.77354]
[1733230418341,2.40039353,3605.6,3605.5,2.77354]
[1733230418970,0.96015741,3605.6,3605.5,2.77354]
[1733230419466,2.40040729,3605.6,3605.5,2.77354]
[1733230420137,2.40040729,3605.6,3605.3,2.77366]
[1733230420477,2.55497299,3605.5,3605.1,2.77384]
[1733230420771,0.96011197,3605.4,3605.2,2.77375]
[1733230420965,2.75657877,3605.5,3605.2,2.77375]
[1733230421167,2.40029427,3605.4,3605.2,2.77375]
[1733230421374,0.96009241,3605.3,3605.2,2.77375]
[1733230421575,2.75657877,3605.5,3605.2,2.77375]
[1733230421738,0.96010842,3605.4,3605.2,2.77375]
[1733230421934,2.75657877,3605.5,3605.2,2.77375]
[1733230422151,2.40026321,3605.4,3605.2,2.77375]
[1733230422471,2.75657877,3605.5,3605.2,2.77375]
[1733230422644,2.40036975,3605.4,3604.8,0.54287561]
[1733230422902,2.75657877,3605.5,3605.0,2.7739]
[1733230423073,2.40033712,3605.4,3605.0,2.7739]
[1733230423418,2.75657877,3605.5,3605.0,2.7739]
[1733230423713,3.59681438,3605.4,3604.6,2.12143308]
[1733230423920,2.40036462,3605.3,3604.9,2.77397]
[1733230424133,0.96014585,3605.2,3604.9,2.77397]
[1733230424324,1.16177877,3605.3,3604.9,2.77397]
[1733230424616,0.96004089,3605.2,3604.9,2.77397]
[1733230424916,1.16177877,3605.3,3604.9,2.77397]
[1733230425083,0.96008378,3605.2,3604.9,2.77397]
[1733230425283,1.16177877,3605.3,3604.9,2.77397]
[1733230425486,1.5948,3605.5,3604.9,2.77397]
[1733230426222,3.56230655,3605.4,3604.9,2.77397]
[1733230426381,3.56216978,3605.3,3604.6,0.56003308]
[1733230426729,2.40074533,3605.2,3604.6,0.77223639]
[1733230426877,1.16142445,3605.3,3604.6,0.77223639]
[1733230426878,0.96035284,3605.1,3604.6,0.77223639]
[1733230427077,1.16142445,3605.3,3604.8,2.77401]
[1733230427292,2.40067111,3605.2,3604.9,2.77398]
[1733230427489,0.96026844,3605.1,3604.9,2.77398]
[1733230427693,1.16142445,3605.3,3604.9,3.12860164]
[1733230427917,2.43393397,3605.2,3605.0,2.77389]
[1733230428119,0.96021046,3605.1,3605.0,2.77389]
[1733230428512,0.99368225,3605.1,3605.0,2.77389]
[1733230428714,0.99370407,3605.1,3605.0,2.77389]
[1733230428910,0.99370407,3605.1,3605.0,3.08674116]
[1733230429099,0.0333554,3605.1,3605.0,3.08674116]
[1733230429508,1.16142445,3605.4,3605.2,2.77369]
[1733230429816,2.400905,3605.3,3605.2,2.77369]
[1733230430332,5.17932945,3605.3,3605.0,3.08674116]
[1733230430558,2.40089283,3605.2,3605.0,3.08674116]
[1733230430729,2.77842445,3605.3,3605.0,3.08674116]
[1733230430925,2.40087288,3605.2,3605.0,3.08674116]
[1733230431118,2.77842445,3605.3,3605.0,3.08674116]
[1733230431326,2.40086431,3605.2,3605.0,3.08674116]
[1733230431520,0.03447591,3605.2,3605.0,3.08674116]
[1733230433639,0.03447591,3605.2,3605.0,0.31285116]
[1733230433864,0.03447591,3605.2,3605.1,2.77384]
[1733230434054,2.43571992,3605.2,3605.1,2.77384]
[1733230434366,2.43571992,3605.2,3605.0,0.31285116]
[1733230434535,0.96047963,3605.1,3604.9,2.77399]
[1733230434736,1.19590036,3605.2,3604.9,2.77399]
[1733230434939,1.617,3605.3,3604.9,2.77399]
[1733230434940,0.03433066,3605.0,3604.9,2.77399]
[1733230435152,2.77842445,3605.3,3604.6,2.36993639]
[1733230435153,2.77842445,3605.3,3604.6,5.36993639]
[1733230435364,0.03433066,3605.0,3604.9,2.77397]
[1733230435573,2.77842445,3605.3,3604.9,2.77397]
[1733230435729,0.03433066,3605.0,3604.9,2.77397]
[1733230435930,2.77842445,3605.3,3604.9,2.77397]
[1733230436172,2.40125116,3605.2,3605.0,2.77389]
[1733230436464,0.96050046,3605.1,3604.7,0.81442064]
[1733230436691,2.77842445,3605.3,3604.8,1.04227273]
[1733230436869,2.40134588,3605.2,3604.8,1.04227273]
[1733230437168,2.77842445,3605.3,3605.0,2.7739]
[1733230437357,2.40125864,3605.2,3605.0,2.7739]
[1733230437558,0.96050327,3605.1,3604.8,3.81632273]
[1733230437774,1.16142445,3605.2,3604.8,3.81632273]
[1733230438000,2.40148613,3605.1,3604.6,5.36993639]
[1733230438325,1.16142445,3605.2,3604.9,2.77399]
[1733230438618,2.40207158,3605.1,3605.0,2.77392]
[1733230438779,2.43656196,3605.1,3605.0,2.77392]
[1733230439487,2.43656196,3605.1,3605.0,7.36762]
[1733230439701,3.46e-06,3605.4,3605.3,2.77369]
[1733230439907,1.74213667,3605.7,3605.6,2.77346]
[1733230440207,2.3228489,3605.8,3605.7,3.20988931]
[1733230440528,1.44203416,3605.8,3605.7,3.20988931]
[1733230440707,1.74395666,3606.1,3606.0,2.77315]
[1733230440877,1.44179316,3606.1,3606.0,2.77315]
[1733230441077,1.47126401,3606.1,3606.0,3.37144793]
[1733230441575,4.77262921,3606.1,3605.1,3.0]
[1733230441799,3.18545836,3606.0,3605.9,2.77323]
[1733230442204,3.21292875,3606.0,3605.9,2.77323]
[1733230442398,3.21300613,3606.0,3605.9,2.77323]
[1733230442573,3.39211416,3606.0,3605.6,0.55785874]
[1733230442778,3.39211416,3606.0,3605.3,3.0]
[1733230442779,3.18587518,3605.9,3605.3,3.0]
[1733230442978,1.44187054,3605.8,3605.6,2.7734]
[1733230443317,1.44187054,3605.7,3605.6,2.7734]
[1733230443676,1.46918374,3605.7,3605.6,2.7734]
[1733230445184,3.21318838,3605.7,3605.6,2.7734]
[1733230447241,3.21317585,3605.7,3605.6,2.7734]
[1733230447543,3.21320844,3605.7,3605.6,2.7734]
[1733230447904,3.3918852,3605.7,3605.6,2.7734]
[1733230448307,3.39237228,3605.7,3605.6,2.7734]
[1733230448640,3.39237228,3605.7,3605.3,4.337]
[1733230448846,1.44185801,3605.6,3605.4,2.7736]
[1733230449031,1.44185801,3605.5,3605.4,2.7736]
[1733230449263,1.46806838,3605.5,3605.4,2.7736]
[1733230450110,2.63107757,3605.5,3605.4,2.7736]
[1733230450311,1.46806838,3605.5,3605.4,2.7736]
[1733230451044,2.63086675,3605.5,3605.4,2.7736]
[1733230451246,2.6308708,3605.5,3605.4,2.7736]
[1733230451411,1.46806838,3605.5,3605.4,2.7736]
[1733230451607,1.46859186,3605.5,3605.4,2.7736]
[1733230451807,2.63150748,3605.5,3605.4,2.7736]
[1733230452605,1.46859186,3605.5,3605.4,2.7736]
[1733230457580,3.21290912,3605.5,3605.4,2.7736]
[1733230458760,3.21290912,3605.5,3605.2,2.77374]
[1733230459089,1.16278065,3605.3,3605.1,2.77384]
[1733230459300,1.46948683,3605.2,3605.1,2.77384]
[1733230459479,3.21380409,3605.2,3605.1,2.77384]
[1733230459683,4.17517746,3605.2,3605.1,2.77384]
[1733230459997,4.35356431,3605.2,3605.1,2.77384]
[1733230460993,6.67641321,3605.2,3605.1,2.77384]
[1733230461199,4.27265835,3605.2,3605.1,2.77384]
[1733230461400,0.02710534,3605.2,3605.1,2.77384]
[1733230461941,4.17329943,3605.2,3605.1,2.77384]
[1733230462095,4.35195022,3605.2,3605.1,2.77384]
[1733230462432,4.1731909,3605.2,3605.1,2.77384]
[1733230462797,2.42980477,3605.2,3605.1,2.77384]
[1733230462998,4.17317724,3605.2,3605.1,2.77384]
[1733230464119,4.35178849,3605.2,3605.1,2.77384]
[1733230467598,4.35281115,3605.2,3605.1,2.77384]
[1733230471578,6.6774707,3605.2,3605.1,2.77384]
[1733230472662,6.6772438,3605.2,3605.1,2.77384]
[1733230473654,6.6616691,3605.2,3605.1,2.77384]
[1733230473896,6.67279852,3605.2,3605.1,2.77384]
[1733230476876,4.34813897,3605.2,3605.1,2.77384]
[1733230477194,7.25492577,3605.2,3605.0,0.71652372]
[1733230477403,4.72888032,3605.1,3604.8,0.56735461]
[1733230477713,1.74391817,3604.9,3604.8,0.56735461]
[1733230478005,4.17581855,3604.9,3604.8,0.56735461]
[1733230478184,2.43190038,3604.9,3604.8,3.34142461]
[1733230478795,4.17581855,3604.9,3604.8,3.34142461]
[1733230479116,4.17581855,3604.9,3604.8,4.25430588]
[1733230479475,2.43190038,3604.9,3604.8,4.25430588]
[1733230479978,4.17581855,3604.9,3604.8,4.25430588]
[1733230480502,2.43190038,3604.9,3604.8,4.25430588]
[1733230480674,2.43190038,3604.9,3604.3,1.337]
[1733230480870,1.16232555,3604.5,3604.0,1.337]
[1733230481099,2.40354933,3604.4,3604.3,2.77439]
[1733230481298,3.5938956,3604.4,3604.0,1.337]
[1733230481497,2.40263853,3604.3,3604.1,2.77459]
[1733230481724,0.98873787,3604.2,3604.1,2.77459]
[1733230482380,0.02793203,3604.2,3604.1,2.77459]
[1733230482706,1.16232555,3604.4,3604.1,2.77459]
[1733230482707,1.16232555,3604.4,3604.1,2.77461]
[1733230482899,2.40133142,3604.3,3604.1,2.77461]
[1733230483138,1.16232555,3604.4,3604.1,2.77461]
[1733230483275,3.56365681,3604.3,3604.1,2.77461]
[1733230483482,0.96053345,3604.2,3604.1,2.77461]
[1733230483875,0.96022557,3604.2,3604.1,2.77461]
[1733230484115,0.96022557,3604.2,3604.1,0.46789737]
[1733230484116,0.02795227,3604.2,3604.1,0.46789737]
[1733230484617,1.16232555,3604.4,3604.2,2.77446]
[1733230484827,0.95999693,3604.3,3604.2,2.77446]
[1733230485718,1.16232555,3604.5,3604.2,2.77446]
[1733230486009,0.95977608,3604.4,3604.3,2.77446]
[1733230486217,2.39947702,3604.4,3604.3,2.77446]
[1733230486398,0.95977608,3604.4,3604.3,2.77446]
[1733230486802,0.95977608,3604.4,3604.0,3.34199367]
[1733230487008,1.16232555,3604.5,3604.1,2.77458]
[1733230487232,2.39918498,3604.4,3604.1,2.77458]
[1733230487433,2.39913271,3604.3,3604.1,2.77458]
[1733230487583,1.16232555,3604.4,3604.1,2.77458]
[1733230487787,0.02937013,3604.2,3604.1,2.77458]
[1733230488287,1.16232555,3604.4,3604.1,2.77458]
[1733230488624,0.0294306,3604.3,3604.2,2.77454]
[1733230488988,0.95955415,3604.3,3604.2,2.77454]
[1733230489300,0.02934132,3604.3,3604.2,2.77454]
[1733230489509,1.16232555,3604.5,3604.2,2.77454]
[1733230489713,2.42871892,3604.4,3604.2,2.77454]
[1733230489892,0.02949501,3604.4,3604.2,2.77454]
[1733230490710,0.02949501,3604.4,3604.3,2.77446]
[1733230490895,2.42929411,3604.4,3604.0,0.56736367]
[1733230491096,0.02949501,3604.4,3604.3,2.77446]
[1733230491301,2.42956171,3604.4,3604.3,2.77446]
[1733230491529,2.42954021,3604.4,3604.3,2.77446]
[1733230491736,0.98952169,3604.4,3604.3,2.77446]
[1733230492086,2.4296471,3604.4,3604.3,2.77446]
[1733230492291,2.4296608,3604.4,3604.3,2.77446]
[1733230492491,0.98952169,3604.4,3604.3,2.77446]
[1733230492720,0.98952169,3604.4,3604.3,3.44753805]
[1733230492887,0.02949501,3604.4,3604.3,4.78453805]
[1733230493094,1.16232555,3604.8,3604.3,2.01007805]
[1733230493301,1.16232555,3604.9,3604.8,2.77407]
[1733230493488,3.5626461,3604.9,3604.8,2.77407]
[1733230493888,2.40032055,3604.9,3604.8,2.77407]
[1733230494313,2.40032055,3604.9,3604.3,2.01007805]
[1733230494515,3.56158851,3604.8,3604.6,2.7742]
[1733230494687,0.96012822,3604.7,3604.6,2.7742]
[1733230495733,2.4005233,3604.7,3604.6,2.7742]
[1733230495913,2.40062316,3604.7,3604.6,2.7742]
[1733230496116,0.96012822,3604.7,3604.6,2.7742]
[1733230496315,1.16126796,3604.9,3604.7,2.77414]
[1733230496528,3.56243074,3604.8,3604.7,2.77414]
[1733230496830,3.5902333,3604.8,3604.7,2.77414]
[1733230497191,3.5902333,3604.8,3604.4,0.20100781]
[1733230497537,3.56243074,3604.7,3604.6,2.77423]
[1733230497708,1.6542,3605.1,3604.7,2.77415]
[1733230498414,1.16165051,3604.8,3604.7,2.77415]
[1733230498714,3.56299993,3604.8,3604.7,2.77415]
[1733230499092,2.40134942,3604.8,3604.7,2.77415]
[1733230499904,4.14382519,3604.8,3604.7,2.77415]
[1733230500437,6.7484084,3604.8,3604.1,2.77458]
[1733230500594,1.16196514,3604.6,3604.2,2.77447]
[1733230500794,1.16196514,3604.3,3604.2,2.77447]
[1733230501095,3.56331456,3604.3,3604.2,2.77447]
[1733230501330,3.56371085,3604.3,3604.2,2.77447]
[1733230501513,3.56371085,3604.3,3604.0,3.34202367]
[1733230501721,2.40174571,3604.2,3604.1,2.77461]
[1733230502108,2.40186542,3604.2,3604.1,2.77461]
[1733230502394,1.16196514,3604.4,3604.2,2.77447]
[1733230502629,3.56426049,3604.3,3604.2,2.77447]
[1733230502844,2.40229535,3604.3,3604.2,3.10865337]
[1733230503025,0.96091814,3604.3,3604.2,3.10865337]
[1733230504396,2.40272004,3604.3,3604.2,3.10865337]
[1733230504939,3.56468518,3604.3,3604.1,2.7746]
[1733230505139,2.40272004,3604.2,3604.1,2.7746]
[1733230505296,0.96091814,3604.2,3604.1,2.7746]
[1733230505502,0.96091814,3604.2,3604.0,0.56736367]
[1733230505695,0.96091814,3604.1,3604.0,0.56736367]
[1733230505895,0.96091814,3604.1,3604.0,3.34205367]
[1733230506308,1.16196514,3604.2,3604.1,2.77461]
[1733230506515,3.56567689,3604.2,3604.1,2.77461]
[1733230506707,2.40371175,3604.2,3604.1,2.77461]
[1733230506903,2.40371175,3604.2,3604.1,3.53267984]
[1733230507130,2.40371175,3604.2,3604.1,4.99659461]
[1733230507301,2.40371175,3604.2,3604.1,3.53267984]
[1733230508710,3.56567689,3604.2,3604.1,3.53267984]
[1733230509036,2.40371175,3604.2,3604.1,3.53267984]
[1733230509456,3.56567689,3604.2,3604.1,3.53267984]
[1733230510828,2.40371175,3604.2,3604.1,3.53267984]
[1733230511154,2.40371175,3604.2,3604.1,2.77461]
[1733230513759,2.40400995,3604.1,3604.0,3.34205367]
[1733230513940,3.56700289,3604.1,3604.0,3.34205367]
[1733230514256,2.40400995,3604.1,3604.0,3.34205367]
[1733230514455,3.56700289,3604.1,3604.0,3.34205367]
[1733230514763,1.16299294,3604.3,3604.0,4.10013751]
[1733230514968,1.16299294,3604.4,3604.3,2.77446]
[1733230515255,3.56684422,3604.4,3604.3,2.77446]
[1733230515928,2.40385128,3604.4,3604.3,4.23837477]
[1733230516132,2.40385128,3604.4,3604.3,4.56047115]
[1733230516133,0.96154051,3604.4,3604.3,4.56047115]
[1733230516365,1.16299294,3604.8,3604.5,2.7743]
[1733230516520,1.16299294,3604.9,3604.8,2.77407]
[1733230516721,2.40441778,3604.9,3604.8,2.77407]
[1733230516921,3.56748203,3604.9,3604.8,2.77407]
[1733230517626,3.56756679,3604.9,3604.8,2.77407]
[1733230518234,0.96176711,3604.9,3604.8,4.23798477]
[1733230518425,0.96176711,3604.9,3604.8,4.94060864]
[1733230518759,2.32330103,3605.4,3604.8,4.94060864]
[1733230518760,1.16314901,3605.1,3604.8,4.94060864]
[1733230519061,1.74247577,3605.2,3605.1,2.77384]
[1733230519224,1.9233556,3605.3,3605.1,2.77384]
[1733230519419,2.4041773,3605.2,3605.1,2.77384]
[1733230519625,3.56725592,3605.2,3605.1,3.54527886]
[1733230519825,2.4041773,3605.2,3605.1,3.54527886]
[1733230521122,0.96156143,3605.2,3605.1,3.54527886]
[1733230521763,1.16304382,3605.4,3605.1,3.54527886]
[1733230522077,1.74452778,3605.9,3605.5,2.77354]
[1733230522367,1.74452778,3606.1,3606.0,2.77315]
[1733230522568,1.44151695,3606.1,3606.0,2.77315]
[1733230524327,1.74452778,3606.4,3606.2,2.77292]
[1733230524559,1.44027645,3606.3,3606.2,2.77292]
[1733230525974,1.43970465,3606.3,3605.4,3.0]
[1733230526176,1.43931154,3606.2,3605.7,2.77331]
[1733230526328,1.43931154,3606.1,3605.7,2.77331]
[1733230526530,3.52692297,3606.3,3605.7,2.77331]
[1733230526839,1.43943935,3606.2,3605.8,2.7733]
[1733230527042,1.43943935,3606.1,3605.7,2.77335]
[1733230527379,3.56158631,3606.3,3605.8,2.77323]
[1733230527542,2.02760349,3606.2,3605.5,2.77347]
[1733230527733,2.90302953,3606.1,3605.5,2.77347]
[1733230527935,1.46391477,3606.1,3605.5,2.77347]
[1733230528292,0.58848873,3606.2,3605.7,2.77338]
[1733230528496,1.43891355,3606.1,3605.7,2.77338]
[1733230528697,1.43890374,3606.1,3605.7,2.77338]
[1733230528897,0.58848873,3606.2,3605.7,2.77338]
[1733230529210,1.43891537,3606.1,3605.7,2.77338]
[1733230529698,1.43891537,3606.1,3605.5,0.01393892]
[1733230529878,1.4387005,3606.3,3605.6,1.46391477]
[1733230530079,0.03040498,3606.0,3605.9,2.77323]
[1733230530392,1.4387005,3606.5,3606.3,2.77291]
[1733230530393,1.43828484,3606.5,3606.3,2.77291]
[1733230530693,1.43828484,3606.6,3606.3,2.77291]
[1733230530858,1.43819728,3606.5,3606.3,2.77291]
[1733230531059,1.43819728,3606.6,3606.3,2.77291]
[1733230531257,1.43819728,3606.5,3606.3,2.77291]
[1733230531599,1.43819728,3606.6,3606.3,2.77291]
[1733230531968,2.59752385,3606.6,3606.3,2.77291]
[1733230532583,1.15932657,3606.6,3606.3,2.77291]
[1733230532894,2.59752385,3606.6,3606.3,2.77291]
[1733230533053,1.15932657,3606.6,3606.3,2.77291]
[1733230534097,1.15932657,3606.5,3605.7,0.20240745]
[1733230534265,1.15932657,3606.5,3605.8,0.29757975]
[1733230534466,1.43819728,3606.6,3606.2,2.77299]
[1733230534467,2.59752385,3606.6,3606.2,2.77299]
[1733230534659,1.15932657,3606.6,3606.2,2.77299]
[1733230535486,2.59752385,3606.6,3606.2,2.77299]
[1733230535687,1.15932657,3606.6,3606.2,2.77299]
[1733230536082,2.59652133,3606.6,3606.2,2.77299]
[1733230536300,1.15932657,3606.6,3606.2,2.77299]
[1733230536498,1.15932657,3606.6,3605.9,0.56886376]
[1733230537021,1.82922757,3606.6,3605.9,2.77321]
[1733230537209,1.82922757,3606.6,3605.6,2.77346]
[1733230537406,1.82922757,3606.6,3605.8,2.77323]
[1733230537567,1.82922757,3606.6,3605.5,2.77348]
[1733230537568,1.82922757,3606.6,3605.9,2.77322]
[1733230537972,1.82922757,3606.6,3605.7,2.77336]
[1733230538294,1.82922757,3606.6,3605.9,2.77322]
[1733230538295,0.50109501,3606.5,3605.9,2.77322]
[1733230538778,0.50109501,3606.5,3606.0,2.77315]
[1733230539118,0.50109501,3606.5,3606.0,2.77308]
[1733230540123,1.82922757,3606.6,3605.6,0.55959273]
[1733230540328,1.15932657,3606.6,3606.1,2.773]
[1733230541975,2.59607851,3606.8,3606.1,2.773]
[1733230542217,0.95777575,3606.7,3606.1,2.773]
[1733230542417,1.15932657,3606.8,3606.1,2.773]
[1733230542984,1.6366,3606.7,3606.1,2.773]
[1733230543435,1.6366,3606.7,3605.9,2.77318]
[1733230543661,1.6366,3606.7,3606.1,1.337]
[1733230543967,1.6366,3606.7,3606.3,2.77291]
[1733230545870,1.6366,3606.7,3606.1,2.77304]
[1733230546076,2.23427405,3606.7,3606.1,2.77304]
[1733230546736,2.23427405,3606.7,3606.2,2.77299]
[1733230547772,2.23427405,3606.7,3606.0,2.77308]
[1733230547773,1.58186142,3606.6,3606.0,2.77308]
[1733230548137,1.58186142,3606.6,3605.8,2.77328]
[1733230549238,1.5472,3606.5,3605.8,2.77328]
[1733230549574,1.5472,3606.3,3605.6,0.55959273]
[1733230549778,1.5472,3606.3,3605.7,2.77336]
[1733230550384,1.59786327,3606.2,3605.5,2.77351]
[1733230550672,1.59786327,3606.2,3605.1,4.88220886]
[1733230550673,1.5632,3606.2,3605.4,3.31771176]
[1733230550884,1.5632,3606.2,3605.8,2.77324]
[1733230551439,1.5632,3606.2,3606.1,2.77307]
[1733230551966,2.76762657,3606.5,3606.1,2.77307]
[1733230552280,0.95787857,3606.4,3606.1,2.77307]
[1733230552838,0.95787857,3606.4,3606.2,2.77298]
[1733230553764,0.95787857,3606.4,3606.3,2.77292]
[1733230554346,0.95787857,3606.4,3605.6,2.80030931]
[1733230554547,0.95787857,3606.4,3606.3,2.77292]
[1733230554985,3.04511785,3606.5,3606.3,2.77292]
[1733230555186,0.95849312,3606.4,3606.2,2.773]
[1733230555345,0.95849312,3606.4,3606.1,0.55119268]
[1733230555680,1.15932657,3606.5,3606.4,2.77284]
[1733230555878,0.95848977,3606.5,3606.4,2.77284]
[1733230556081,1.4377117,3606.7,3606.4,2.77284]
[1733230556082,1.15932657,3606.7,3606.4,4.97955358]
[1733230556393,1.15932657,3607.0,3606.7,2.77261]
[1733230556537,1.6581,3607.4,3607.0,2.77236]
[1733230556986,0.95877158,3607.3,3607.0,2.77232]
[1733230557186,1.43817023,3607.3,3606.7,2.77261]
[1733230557341,4.2555968,3607.4,3607.0,2.77233]
[1733230557541,3.55639807,3607.3,3606.7,3.68152636]
[1733230557742,0.95890127,3607.2,3607.1,2.7723]
[1733230557967,4.2555968,3607.4,3607.1,2.7723]
[1733230558184,0.95889936,3607.3,3606.7,3.68152636]
[1733230558343,1.43867618,3607.3,3607.2,2.77223]
[1733230558539,2.39779708,3607.3,3607.2,2.77223]
[1733230558744,0.9591209,3607.3,3607.2,2.77223]
[1733230559189,2.39779708,3607.3,3607.2,2.77223]
[1733230559344,0.9591209,3607.3,3607.2,2.77223]
[1733230559683,2.59831614,3607.5,3607.4,2.77207]
[1733230559891,0.9593046,3607.5,3607.4,2.77207]